bitfinex-derivatives/quotes_ETHF0:USTF0_20250704
["timestamp","ask_amount","ask_price","bid_price","bid_amount"]
[1751623333889,3.2078,2556.0,2555.4,3.2078]
[1751623334191,0.78223,2555.9,2555.8,3.2078]
[1751623334382,2.19553,2555.9,2555.8,3.99006]
[1751623334891,2.19553,2555.9,2555.8,3.2078]
[1751623335089,0.78232,2555.6,2555.5,3.99015]
[1751623336994,2.19562,2555.7,2555.6,0.78232]
[1751623338190,1.4133,2555.7,2555.6,0.78232]
[1751623338395,0.6693,2555.8,2555.7,0.78229]
[1751623341497,1.45156,2555.8,2555.7,0.78229]
[1751623341897,0.6693,2555.8,2555.7,0.78229]
[1751623342695,97.94616,2556.2,2555.9,0.78223]
[1751623342894,0.6499,2556.1,2556.0,0.7822]
[1751623345098,3.2078,2556.4,2556.3,0.78211]
[1751623345299,12.3303,2556.5,2556.4,0.78208]
[1751623345892,13.11235,2556.5,2556.4,0.78208]
[1751623346596,0.78212,2556.4,2556.3,0.78208]
[1751623346793,2.81842,2556.4,2556.3,0.78208]
[1751623347295,0.78214,2556.2,2556.1,3.2078]
[1751623347693,0.78214,2556.2,2556.1,3.98997]
[1751623348198,0.78213,2556.3,2556.2,0.78209]
[1751623348394,2.17073,2556.3,2556.2,0.78209]
[1751623349601,1.3886,2556.3,2556.2,0.78214]
[1751623350000,2.17071,2556.3,2556.2,0.78214]
[1751623350301,1.3886,2556.3,2556.2,0.78214]
[1751623350803,2.17071,2556.3,2556.2,0.78214]
[1751623350998,1.3886,2556.3,2556.2,0.78214]
[1751623352098,2.17071,2556.3,2556.2,0.78214]
[1751623352403,1.3886,2556.3,2556.2,0.78214]
[1751623356498,2.59303248,2556.3,2556.2,0.78214]
[1751623359106,1.20443248,2556.3,2556.2,0.78214]
[1751623361202,2.58023248,2556.3,2556.2,0.78214]
[1751623363604,1.3758,2556.3,2556.2,0.78214]
[1751623363809,2.58064709,2556.3,2556.2,0.78214]
[1751623369116,3.36275709,2556.3,2556.2,0.78214]
[1751623369515,2.58064709,2556.3,2556.2,0.78214]
[1751623369916,0.78219,2556.2,2556.1,0.78215]
[1751623370116,3.39213709,2556.2,2556.1,0.78215]
[1751623372314,38.87813709,2556.2,2556.1,0.78215]
[1751623372814,0.7822,2556.1,2556.0,0.78219]
[1751623373014,3.98274709,2556.1,2556.0,0.78219]
[1751623373316,3.98274709,2556.1,2555.8,3.2078]
[1751623373317,0.78223,2556.0,2555.9,0.78221]
[1751623373514,3.33387709,2556.0,2555.9,0.78221]
[1751623373711,0.78223,2555.9,2555.8,3.99004]
[1751623373915,3.33387709,2555.9,2555.8,0.78224]
[1751623374817,2.55164709,2555.9,2555.8,0.78224]
[1751623375311,1.20484709,2555.9,2555.8,3.99004]
[1751623375615,36.1359,2556.1,2556.0,0.7822]
[1751623375818,37.34274123,2556.1,2556.0,0.7822]
[1751623376322,1.20684123,2556.1,2556.0,0.7822]
[1751623376723,0.6903,2556.4,2556.3,0.78211]
[1751623377023,1.89767101,2556.4,2556.3,0.78211]
[1751623377422,0.6903,2556.4,2556.3,0.78211]
[1751623377722,1.89763231,2556.4,2556.3,0.78211]
[1751623378814,1.20733231,2556.4,2556.3,0.78211]
[1751623380020,1.98941231,2556.4,2556.3,0.78211]
[1751623380523,3.35291231,2556.4,2556.3,0.78211]
[1751623380821,2.57083231,2556.4,2556.3,0.78211]
[1751623381022,3.35291231,2556.4,2556.3,0.78211]
[1751623382021,0.78214,2556.2,2556.1,0.78216]
[1751623382220,0.78229,2555.8,2555.6,3.2078]
[1751623382426,0.78229,2555.8,2555.7,0.78227]
[1751623384925,0.78229,2555.8,2555.6,3.2078]
[1751623384926,36.29026,2555.9,2555.8,0.78226]
[1751623385124,38.89964305,2555.9,2555.8,0.78226]
[1751623387530,37.49314305,2555.9,2555.8,0.78226]
[1751623398641,38.17494305,2555.9,2555.8,0.78226]
[1751623403442,0.78232,2555.8,2555.7,0.78226]
[1751623403642,3.35070305,2555.8,2555.7,0.78226]
[1751623407646,1.98520305,2555.8,2555.7,0.78226]
[1751623409650,1.20288305,2555.8,2555.7,0.78226]
[1751623411051,36.69288305,2555.8,2555.7,0.78226]
[1751623415756,37.47514305,2555.8,2555.7,0.78226]
[1751623416659,36.69288305,2555.8,2555.7,0.78226]
[1751623417161,37.47514305,2555.8,2555.7,0.78226]
[1751623418059,36.69288305,2555.8,2555.7,0.78226]
[1751623418255,37.47514305,2555.8,2555.7,0.78226]
[1751623418461,38.86614305,2555.8,2555.7,0.78226]
[1751623421364,38.08388305,2555.8,2555.7,0.78226]
[1751623423267,1.20288305,2555.8,2555.7,0.78226]
[1751623423468,36.69188305,2555.8,2555.7,0.78226]
[1751623424478,1.20288305,2555.8,2555.7,0.78226]
[1751623426180,1.20524511,2555.8,2555.7,0.78229]
[1751623432285,1.98750511,2555.8,2555.7,0.78229]
[1751623432582,3.28160511,2555.8,2555.7,0.78229]
[1751623433383,2.49934511,2555.8,2555.7,0.78229]
[1751623434879,3.28160511,2555.8,2555.7,0.78229]
[1751623438180,0.78232,2555.7,2555.6,0.7823]
[1751623438485,4.02746372,2555.7,2555.6,0.7823]
[1751623440681,0.78239,2555.5,2555.4,0.78235]
[1751623440985,0.78239,2555.5,2555.3,3.99022]
[1751623440986,0.78239,2555.4,2555.3,3.99022]
[1751623441184,4.01283372,2555.4,2555.3,3.99022]
[1751623441383,4.01283372,2555.4,2555.3,3.2078]
[1751623442886,0.78242,2555.3,2555.2,0.78244]
[1751623443183,3.39726372,2555.3,2555.2,0.78244]
[1751623443587,0.78248,2555.2,2555.1,0.78246]
[1751623443786,1.20514372,2555.2,2555.1,0.78246]
[1751623448286,36.1407,2555.4,2555.3,0.78242]
[1751623448491,37.34439886,2555.4,2555.3,0.78242]
[1751623458391,1.20369886,2555.4,2555.3,3.99022]
[1751623458691,0.6704,2555.8,2555.7,0.78229]
[1751623458897,36.1584,2555.8,2555.7,0.78229]
[1751623459095,37.36038078,2555.8,2555.7,0.78229]
[1751623459293,37.36038078,2555.8,2555.7,1.46209]
[1751623459597,37.35938078,2555.8,2555.7,1.46209]
[1751623459790,1.87238078,2555.8,2555.7,1.46209]
[1751623460097,37.35938078,2555.8,2555.7,1.46209]
[1751623460497,36.1574,2555.8,2555.7,1.46209]
[1751623461998,36.1574,2555.8,2555.7,4.66989]
[1751623463296,37.35911665,2555.8,2555.7,3.99009]
[1751623464201,36.1574,2555.8,2555.7,3.99009]
[1751623465097,37.35823719,2555.8,2555.7,3.99009]
[1751623465395,36.1574,2555.8,2555.7,3.99009]
[1751623465702,36.1534,2555.8,2555.7,3.99009]
[1751623466402,67.345,2556.1,2555.8,1.95562]
[1751623466602,36.68271647,2556.0,2555.9,0.78223]
[1751623471400,38.05681647,2556.0,2555.9,0.78223]
[1751623477105,0.6827,2556.1,2556.0,0.7822]
[1751623477307,36.1587,2556.1,2556.0,0.7822]
[1751623477609,37.35793021,2556.1,2556.0,0.7822]
[1751623478109,37.35693021,2556.1,2556.0,0.7822]
[1751623479605,1.88193021,2556.1,2556.0,0.7822]
[1751623484012,3.18693021,2556.1,2556.0,0.7822]
[1751623488023,0.7822,2556.0,2555.9,3.99002]
[1751623488318,39.50273021,2556.0,2555.9,3.99002]
[1751623490713,38.72053021,2556.0,2555.9,3.99002]
[1751623490910,38.03443021,2556.0,2555.9,3.99002]
[1751623491110,1.19923021,2556.0,2555.9,3.99002]
[1751623491314,36.67123021,2556.0,2555.9,3.99002]
[1751623494224,36.67023021,2556.0,2555.9,3.99002]
[1751623494419,35.471,2556.0,2555.9,3.99002]
[1751623494722,41.4443,2556.3,2556.2,0.78214]
[1751623494916,42.64279943,2556.3,2556.2,0.78214]
[1751623495116,78.11379943,2556.3,2556.2,0.78214]
[1751623497118,42.64279943,2556.3,2556.2,0.78214]
[1751623497423,42.64279943,2556.3,2556.2,3.98994]
[1751623497424,37.31279943,2556.3,2556.2,3.98994]
[1751623497923,78.11279943,2556.3,2556.2,3.98994]
[1751623504027,78.11279943,2556.3,2556.2,0.78214]
[1751623509438,80.23460943,2556.3,2556.2,0.78214]
[1751623509821,43.98249943,2556.3,2556.2,0.78214]
[1751623510024,78.10679943,2556.3,2556.2,0.78214]
[1751623510625,37.30679943,2556.3,2556.2,0.78214]
[1751623518529,1.19849943,2556.3,2556.2,0.78214]
[1751623520433,1.88909943,2556.3,2556.2,0.78214]
[1751623522834,3.17049943,2556.3,2556.2,0.78214]
[1751623523229,3.17049943,2556.3,2555.8,0.6853]
[1751623523230,8.17049943,2556.3,2555.8,0.6853]
[1751623523537,0.78233,2555.7,2555.6,0.7823]
[1751623523735,35.46,2555.7,2555.6,0.7823]
[1751623524034,36.65849943,2555.7,2555.6,0.7823]
[1751623524237,79.52219943,2555.7,2555.6,0.7823]
[1751623524735,78.73989943,2555.7,2555.6,0.7823]
[1751623525535,43.27989943,2555.7,2555.6,0.7823]
[1751623525738,41.99849943,2555.7,2555.6,0.7823]
[1751623525936,35.46,2555.7,2555.6,0.7823]
[1751623526234,3.2078,2556.0,2555.9,0.78223]
[1751623526535,41.98445552,2556.0,2555.9,0.78223]
[1751623526834,77.44445552,2556.0,2555.9,0.78223]
[1751623527035,35.46,2556.0,2555.9,0.78223]
[1751623527330,11.6965,2556.1,2556.0,0.7822]
[1751623527533,89.1428106,2556.1,2556.0,0.7822]
[1751623539242,90.4356106,2556.1,2556.0,0.7822]
[1751623545546,91.2177806,2556.1,2556.0,0.7822]
[1751623545745,90.4356106,2556.1,2556.0,0.7822]
[1751623545948,91.2177806,2556.1,2556.0,0.7822]
[1751623546249,0.78223,2556.0,2555.9,0.78222]
[1751623546549,0.78223,2556.0,2555.7,1.95573]
[1751623546550,0.7823,2555.8,2555.7,0.78225]
[1751623546752,35.462,2555.8,2555.7,0.7823]
[1751623546943,77.4463106,2555.8,2555.7,0.7823]
[1751623547243,79.4368106,2555.8,2555.7,0.7823]
[1751623551553,80.2190706,2555.8,2555.7,0.7823]
[1751623552156,79.4368106,2555.8,2555.7,0.7823]
[1751623552357,80.2190706,2555.8,2555.7,0.7823]
[1751623552654,79.4368106,2555.8,2555.7,0.7823]
[1751623553658,80.2190706,2555.8,2555.7,0.7823]
[1751623554558,77.4493106,2555.8,2555.7,0.7823]
[1751623554755,36.6493106,2555.8,2555.7,0.7823]
[1751623554960,36.6493106,2555.8,2555.7,1.4595]
[1751623556460,36.6493106,2555.8,2555.7,0.7823]
[1751623556761,38.0541106,2555.8,2555.7,0.7823]
[1751623557160,38.8363906,2555.8,2555.7,0.7823]
[1751623558755,49.8253906,2555.8,2555.7,0.7823]
[1751623563661,47.6383106,2555.8,2555.7,0.7823]
[1751623564563,1.9665706,2555.8,2555.7,0.7823]
[1751623564760,37.4315706,2555.8,2555.7,0.7823]
[1751623566759,38.7401706,2555.8,2555.7,0.7823]
[1751623570664,37.9579106,2555.8,2555.4,3.9045]
[1751623570856,0.78236,2555.5,2555.4,3.99019]
[1751623571062,36.24636,2555.5,2555.4,3.99019]
[1751623571260,37.4306706,2555.5,2555.4,3.2078]
[1751623571760,37.4306706,2555.5,2555.4,3.99019]
[1751623574861,36.6483106,2555.5,2555.4,3.99019]
[1751623577566,37.4306706,2555.5,2555.4,3.99019]
[1751623579466,36.6483106,2555.5,2555.4,0.78239]
[1751623579966,37.4306706,2555.5,2555.4,0.78239]
[1751623582670,0.78239,2555.4,2555.3,1.45491]
[1751623582874,2.6302006,2555.4,2555.3,0.78241]
[1751623583064,3.9110006,2555.4,2555.3,0.78241]
[1751623583463,1.8478106,2555.4,2555.3,0.78241]
[1751623583667,1.8478106,2555.4,2555.3,1.48761]
[1751623583875,2.6302006,2555.4,2555.3,1.48761]
[1751623588877,1.1843106,2555.4,2555.3,1.48761]
[1751623589077,1.9667006,2555.4,2555.3,1.48761]
[1751623589680,1.1843106,2555.4,2555.3,1.48761]
[1751623590475,1.9667006,2555.4,2555.3,1.48761]
[1751623590672,1.1843106,2555.4,2555.3,1.48761]
[1751623590976,36.6493106,2555.4,2555.3,1.48761]
[1751623592380,1.1843106,2555.4,2555.3,1.48761]
[1751623592582,36.6493106,2555.4,2555.3,1.48761]
[1751623593082,37.4317006,2555.4,2555.3,1.48761]
[1751623593276,36.6493106,2555.4,2555.3,1.48761]
[1751623594979,35.465,2555.4,2555.3,1.48761]
[1751623595276,37.43288195,2555.4,2555.3,1.48761]
[1751623596078,36.65049195,2555.4,2555.3,1.48761]
[1751623600778,1.18549195,2555.4,2555.3,1.48761]
[1751623612089,1.96788195,2555.4,2555.3,1.48761]
[1751623612288,1.96788195,2555.4,2555.3,0.78241]
[1751623612589,3.30638195,2555.4,2555.3,0.78241]
[1751623613292,3.30671092,2555.4,2555.3,0.78241]
[1751623613593,0.78242,2555.3,2555.2,3.99023]
[1751623613884,4.03054092,2555.3,2555.2,3.99023]
[1751623614588,3.24812092,2555.3,2555.2,3.99023]
[1751623614790,4.03054092,2555.3,2555.2,3.99023]
[1751623614985,3.24812092,2555.3,2555.2,3.99023]
[1751623615489,4.03054092,2555.3,2555.2,3.99023]
[1751623616284,4.03054092,2555.3,2555.2,3.2078]
[1751623617386,4.03054092,2555.3,2555.2,3.99025]
[1751623617587,4.03054092,2555.3,2555.2,3.2078]
[1751623617889,4.03054092,2555.3,2555.2,3.99025]
[1751623618281,4.03054092,2555.3,2555.2,3.2078]
[1751623618990,4.03054092,2555.3,2555.2,3.99025]
[1751623620788,2.84472,2555.3,2555.2,3.99025]
[1751623620988,4.0300749,2555.3,2555.2,3.99025]
[1751623626296,4.0300749,2555.3,2555.2,3.2078]
[1751623627795,4.0300749,2555.3,2555.2,3.99025]
[1751623628393,4.0300749,2555.3,2555.2,3.2078]
[1751623628593,4.0300749,2555.3,2555.2,3.99025]
[1751623629495,4.0300749,2555.3,2555.2,3.2078]
[1751623630698,0.78245,2555.2,2555.1,0.78248]
[1751623630894,38.7973049,2555.2,2555.1,0.78248]
[1751623631101,0.78254,2555.1,2555.0,0.78249]
[1751623631294,1.9678949,2555.1,2555.0,0.78249]
[1751623636308,0.78254,2555.0,2554.9,0.78252]
[1751623636504,1.9678949,2555.0,2554.9,0.78252]
[1751623637408,0.78254,2554.9,2554.8,5.31745]
[1751623637611,1.47334,2554.9,2554.8,3.8539]
[1751623637809,2.65746871,2554.9,2554.8,4.63647]
[1751623638203,1.96666871,2554.9,2554.8,4.63647]
[1751623638703,1.18412871,2554.9,2554.8,4.63647]
[1751623638908,36.24152,2555.0,2554.9,0.78254]
[1751623639208,37.42556498,2555.0,2554.9,0.78254]
[1751623639400,37.42556498,2555.0,2554.9,1.49014]
[1751623640309,36.64304498,2555.0,2554.9,1.49014]
[1751623640909,37.42555498,2555.0,2554.9,1.49014]
[1751623643406,36.64304498,2555.0,2554.9,1.49014]
[1751623646912,1.18404498,2555.0,2554.9,1.49014]
[1751623647118,35.457,2555.2,2555.1,0.78248]
[1751623647304,1.18470939,2555.2,2555.1,0.78248]
[1751623650516,1.96715939,2555.2,2555.1,0.78248]
[1751623651717,2.61765939,2555.2,2555.1,0.78248]
[1751623661323,4.03465939,2555.2,2555.1,0.78248]
[1751623668937,3.25220939,2555.2,2555.1,0.78248]
[1751623669439,4.03465939,2555.2,2555.1,0.78248]
[1751623670638,2.61765939,2555.2,2555.1,0.78248]
[1751623673242,1.83520939,2555.2,2555.1,0.78248]
[1751623673644,2.61765939,2555.2,2555.1,0.78248]
[1751623676333,4.00155939,2555.2,2555.1,0.78248]
[1751623681942,4.00363986,2555.2,2555.1,0.78248]
[1751623685743,1.83728986,2555.2,2555.1,0.78248]
[1751623685943,37.28328986,2555.2,2555.1,0.78248]
[1751623687642,36.87895,2555.2,2555.1,0.78248]
[1751623687841,38.06598077,2555.2,2555.1,0.78248]
[1751623688446,37.28353077,2555.2,2555.1,0.78248]
[1751623689049,36.63303077,2555.2,2555.1,0.78248]
[1751623689547,37.41548077,2555.2,2555.1,0.78248]
[1751623689752,36.63303077,2555.2,2555.1,0.78248]
[1751623690043,1.18703077,2555.2,2555.1,0.78248]
[1751623694045,1.96948077,2555.2,2555.1,0.78248]
[1751623695150,3.27138077,2555.2,2555.1,0.78248]
[1751623698953,1.18703077,2555.2,2555.1,0.78248]
[1751623705356,2.56943077,2555.2,2555.1,0.78248]
[1751623705548,0.78248,2555.1,2555.0,3.99028]
[1751623705755,1.18703077,2555.1,2555.0,3.99031]
[1751623706049,36.62503077,2555.1,2555.0,3.99031]
[1751623706953,36.62503077,2555.1,2555.0,0.78251]
[1751623707654,36.62503077,2555.1,2554.8,3.8537]
[1751623707857,4.02106077,2555.0,2554.9,0.78253]
[1751623713463,3.23853077,2555.0,2554.5,3.2078]
[1751623713663,0.78263,2554.7,2554.6,0.78259]
[1751623713862,35.438,2554.8,2554.5,3.2078]
[1751623714062,37.55488,2554.8,2554.7,0.7826]
[1751623714268,1.18924359,2554.8,2554.7,0.7826]
[1751623714766,35.438,2554.9,2554.8,0.78257]
[1751623714963,36.62715528,2554.9,2554.8,3.99037]
[1751623715162,35.438,2554.9,2554.8,3.99037]
[1751623715663,0.7825,2555.1,2555.0,0.78251]
[1751623715861,37.40960395,2555.1,2555.0,0.78251]
[1751623716261,36.62710395,2555.1,2555.0,0.78251]
[1751623717167,37.40958395,2555.1,2555.0,0.78251]
[1751623717368,38.75358395,2555.1,2555.0,0.78251]
[1751623718571,1.18910395,2555.1,2555.0,0.78251]
[1751623718865,36.62610395,2555.1,2555.0,0.78251]
[1751623720974,1.18910395,2555.1,2555.0,0.78251]
[1751623721168,35.437,2555.2,2555.1,0.78248]
[1751623721369,36.62604777,2555.2,2555.1,0.78248]
[1751623721869,1.18904777,2555.2,2555.1,0.78248]
[1751623722466,46.416,2555.6,2555.5,0.78236]
[1751623722666,47.60492955,2555.6,2555.5,0.78236]
[1751623722870,36.62492955,2555.6,2555.5,0.78236]
[1751623723275,1.18892955,2555.6,2555.5,0.78236]
[1751623728179,35.436,2555.8,2555.7,0.78229]
[1751623728384,37.9054226,2555.8,2555.7,0.78229]
[1751623728678,39.3697826,2555.8,2555.7,0.78229]
[1751623734687,0.78232,2555.7,2555.6,0.7823]
[1751623734883,1.9712426,2555.7,2555.6,0.7823]
[1751623735384,37.3992426,2555.7,2555.6,0.7823]
[1751623735887,0.78233,2555.6,2555.5,3.99013]
[1751623736186,0.78242,2555.3,2555.2,3.8492]
[1751623736380,36.20942,2555.3,2555.2,3.2078]
[1751623736787,37.39626952,2555.3,2555.2,3.2078]
[1751623738087,0.78245,2555.2,2555.1,0.78247]
[1751623738288,2.20225,2555.2,2555.1,0.78247]
[1751623743786,2.12979,2554.9,2554.8,0.78255]
[1751623744293,36.21053,2555.0,2554.9,0.78254]
[1751623744588,37.39811659,2555.0,2554.9,0.78254]
[1751623748295,36.21053,2555.0,2554.9,0.78254]
[1751623749089,37.39877947,2555.0,2554.9,0.78254]
[1751623749393,36.21053,2555.0,2554.9,0.78254]
[1751623750597,37.55793,2555.0,2554.9,0.78254]
[1751623752498,36.21053,2555.0,2554.9,0.78254]
[1751623754399,4.4901,2555.3,2555.0,0.78251]
[1751623754600,36.62075033,2555.2,2555.1,0.78248]
[1751623754801,35.432,2555.2,2555.1,0.78248]
[1751623755100,10.978,2555.4,2555.3,0.78242]
[1751623755293,47.59863462,2555.4,2555.3,0.78242]
[1751623756195,48.38102462,2555.4,2555.3,0.78242]
[1751623756901,47.59863462,2555.4,2555.3,0.78242]
[1751623757589,48.38102462,2555.4,2555.3,0.78242]
[1751623759300,12.16663462,2555.4,2555.3,0.78242]
[1751623759495,47.59663462,2555.4,2555.3,0.78242]
[1751623761796,48.37902462,2555.4,2555.3,0.78242]
[1751623762296,36.61863462,2555.4,2555.3,0.78242]
[1751623762503,37.40102462,2555.4,2555.3,0.78242]
[1751623763399,0.78242,2555.3,2555.2,0.78242]
[1751623763600,2.67495462,2555.3,2555.2,0.78242]
[1751623763895,0.78248,2555.1,2555.0,1.46778]
[1751623764297,1.97111462,2555.1,2555.0,1.46778]
[1751623764597,3.38021462,2555.1,2555.0,1.46778]
[1751623764997,0.78251,2555.0,2554.9,3.99031]
[1751623765304,38.045698,2555.0,2554.9,3.99031]
[1751623765503,39.454798,2555.0,2554.9,3.99031]
[1751623768499,38.045698,2555.0,2554.9,3.99031]
[1751623772103,37.263188,2555.0,2554.9,3.99031]
[1751623772304,38.045698,2555.0,2554.9,3.99031]
[1751623773203,37.263188,2555.0,2554.9,3.99031]
[1751623773903,38.045698,2555.0,2554.9,3.99031]
[1751623775504,37.263188,2555.0,2554.9,3.99031]
[1751623776806,1.835188,2555.0,2554.9,3.99031]
[1751623777008,10.978,2555.4,2555.3,0.78242]
[1751623777308,48.37916029,2555.4,2555.3,0.78242]
[1751623779807,12.16775029,2555.4,2555.3,0.78242]
[1751623780007,47.59475029,2555.4,2555.3,0.78242]
[1751623780707,48.37714029,2555.4,2555.3,0.78242]
[1751623781910,47.59475029,2555.4,2555.3,0.78242]
[1751623782114,48.37714029,2555.4,2555.3,0.78242]
[1751623782413,12.95014029,2555.4,2555.3,0.78242]
[1751623782608,12.16775029,2555.4,2555.3,0.78242]
[1751623782817,36.61575029,2555.4,2555.3,1.46872]
[1751623784210,1.18975029,2555.4,2555.3,1.46872]
[1751623784410,35.426,2555.5,2555.4,0.78239]
[1751623784608,36.6145282,2555.5,2555.4,0.78239]
[1751623785110,70.5368,2555.8,2555.5,0.78236]
[1751623785314,36.0813,2555.8,2555.7,0.78229]
[1751623785512,38.05178911,2555.8,2555.7,0.78229]
[1751623786511,37.26952911,2555.8,2555.7,0.78229]
[1751623790416,38.05178911,2555.8,2555.7,0.78229]
[1751623791518,37.26952911,2555.8,2555.7,0.78229]
[1751623791917,38.04878911,2555.8,2555.7,0.78229]
[1751623792915,0.78233,2555.6,2555.5,1.43862]
[1751623793115,36.20333,2555.6,2555.5,0.78232]
[1751623793423,0.78236,2555.5,2555.4,0.78236]
[1751623793617,2.80306,2555.5,2555.4,0.78236]
[1751623794118,3.9895233,2555.5,2555.4,0.78236]
[1751623794519,0.78244,2555.4,2555.3,0.78239]
[1751623794718,37.53904,2555.4,2555.3,0.78239]
[1751623796923,35.42,2555.4,2555.3,0.78239]
[1751623798719,36.20239,2555.4,2555.3,0.78239]
[1751623799321,37.49209,2555.4,2555.3,0.78239]
[1751623800727,36.7097,2555.4,2555.3,0.78239]
[1751623801028,35.42,2555.4,2555.3,0.78239]
[1751623804333,36.6091213,2555.4,2555.3,0.78239]
[1751623804735,35.42,2555.4,2555.3,0.78239]
[1751623805234,36.60958683,2555.4,2555.3,0.78239]
[1751623805434,37.39197683,2555.4,2555.3,0.78239]
[1751623805635,36.60958683,2555.4,2555.3,0.78239]
[1751623811537,37.39197683,2555.4,2555.3,0.78239]
[1751623811737,36.60958683,2555.4,2555.3,0.78239]
[1751623813141,1.18958683,2555.4,2555.3,0.78239]
[1751623813634,1.18958683,2555.4,2555.3,1.47089]
[1751623815242,1.97197683,2555.4,2555.3,1.47089]
[1751623815438,1.97197683,2555.4,2555.3,0.78239]
[1751623815639,0.78242,2555.3,2555.2,3.99022]
[1751623815839,2.14752,2555.3,2555.2,3.99022]
[1751623817140,1.3651,2555.3,2555.2,3.99022]
[1751623819045,2.14752,2555.3,2555.2,3.99022]
[1751623819738,0.78241,2555.4,2555.3,0.78242]
[1751623819937,1.97286169,2555.4,2555.3,0.78242]
[1751623821038,3.30426169,2555.4,2555.3,0.78242]
[1751623824940,2.52185169,2555.4,2555.3,0.78242]
[1751623825646,3.30424169,2555.4,2555.3,0.78242]
[1751623829448,2.52185169,2555.4,2555.3,0.78242]
[1751623830248,36.60845169,2555.4,2555.3,0.78242]
[1751623830449,36.60845169,2555.4,2555.3,1.47932]
[1751623837152,36.60947992,2555.4,2555.3,1.47932]
[1751623838753,37.39186992,2555.4,2555.3,1.47932]
[1751623838951,36.60947992,2555.4,2555.3,1.47932]
[1751623839144,36.60947992,2555.4,2555.3,0.78242]
[1751623839342,37.39186992,2555.4,2555.3,0.78242]
[1751623840051,38.75886992,2555.4,2555.3,0.78242]
[1751623841650,37.97647992,2555.4,2555.3,0.78242]
[1751623841849,38.75886992,2555.4,2555.3,0.78242]
[1751623843051,37.97647992,2555.4,2555.3,0.78242]
[1751623843851,38.75886992,2555.4,2555.3,0.78242]
[1751623850861,37.97647992,2555.4,2555.3,0.78242]
[1751623851160,38.75886992,2555.4,2555.3,0.78242]
[1751623851659,37.97647992,2555.4,2555.3,0.78242]
[1751623851959,38.75886992,2555.4,2555.3,0.78242]
[1751623867579,37.97647992,2555.4,2555.3,0.78242]
[1751623867785,36.60947992,2555.4,2555.3,0.78242]
[1751623875286,37.39186992,2555.4,2555.3,0.78242]
[1751623876284,36.60947992,2555.4,2555.3,0.78242]
[1751623878387,37.39186992,2555.4,2555.3,0.78242]
[1751623879592,36.60947992,2555.4,2555.3,0.78242]
[1751623880192,0.78242,2555.3,2555.2,3.2078]
[1751623880384,1.97389992,2555.3,2555.2,3.2078]
[1751623880590,3.33589992,2555.3,2555.2,3.2078]
[1751623881092,0.78248,2555.1,2555.0,0.78251]
[1751623881287,36.18748,2555.1,2555.0,0.78251]
[1751623881493,0.78251,2555.0,2554.9,3.2078]
[1751623881693,3.33598992,2555.0,2554.9,3.2078]
[1751623881893,3.33598992,2555.0,2554.9,3.99034]
[1751623882494,3.33598992,2555.0,2554.9,3.2078]
[1751623883488,0.78261,2554.7,2554.6,3.99042]
[1751623883796,37.37472495,2554.7,2554.6,3.99042]
[1751623884495,38.77802495,2554.7,2554.6,3.99042]
[1751623884993,38.77802495,2554.7,2554.6,3.2078]
[1751623885386,0.78273,2554.3,2554.2,3.2078]
[1751623885695,36.18873,2554.3,2554.2,3.2078]
[1751623885884,37.37519161,2554.3,2554.2,3.2078]
[1751623886293,38.66429161,2554.3,2554.2,3.2078]
[1751623886494,37.47783,2554.3,2554.2,3.2078]
[1751623886894,0.78285,2554.0,2553.9,0.78283]
[1751623887095,36.18885,2554.0,2553.9,0.78283]
[1751623888199,35.406,2554.0,2553.9,0.78283]
[1751623888499,36.18882,2554.0,2553.9,0.78283]
[1751623888796,35.406,2554.0,2553.9,0.78283]
[1751623889999,36.18882,2554.0,2553.9,0.78283]
[1751623890195,36.84512,2554.0,2553.9,0.78283]
[1751623890394,36.0623,2554.0,2553.9,0.78283]
[1751623890691,36.84512,2554.0,2553.9,0.78283]
[1751623891493,36.84512,2554.0,2553.9,0.78285]
[1751623894002,36.0623,2554.0,2553.9,0.78285]
[1751623894204,36.84512,2554.0,2553.9,0.78285]
[1751623898007,36.0623,2554.0,2553.9,0.78285]
[1751623898308,0.78278,2554.2,2554.1,0.78279]
[1751623898607,36.19978,2554.2,2554.1,0.78279]
[1751623898807,1.47495,2554.3,2554.2,0.78276]
[1751623899007,36.89095,2554.3,2554.2,0.78276]
[1751623901111,10.975,2554.4,2554.3,0.78273]
[1751623901310,10.975,2554.4,2554.3,3.99053]
[1751623901511,0.682,2554.7,2554.6,0.78264]
[1751623901809,14.1828,2555.0,2554.9,0.78254]
[1751623902006,49.5998,2555.0,2554.9,0.78254]
[1751623902208,14.1828,2555.0,2554.9,0.78254]
[1751623902408,50.38333,2555.0,2554.9,0.78254]
[1751623903709,0.78254,2554.9,2554.8,1.42695]
[1751623904508,49.6008,2555.0,2554.4,1.9567]
[1751623904710,0.7826,2554.8,2554.7,0.7826]
[1751623906916,0.78264,2554.7,2554.6,0.78261]
[1751623907113,36.19864,2554.7,2554.6,0.78261]
[1751623910414,37.38672223,2554.7,2554.6,0.78261]
[1751623911317,36.19864,2554.7,2554.6,0.78261]
[1751623911819,37.38705343,2554.7,2554.6,0.78261]
[1751623913619,0.78269,2554.6,2554.5,0.78264]
[1751623913819,1.42729,2554.6,2554.5,0.78264]
[1751623915526,2.6162897,2554.6,2554.5,0.78264]
[1751623915726,0.78269,2554.5,2554.4,0.78267]
[1751623918929,2.11459,2554.5,2554.4,0.78267]
[1751623919626,0.78269,2554.4,2554.3,3.9905]
[1751623919827,37.52759,2554.4,2554.3,3.9905]
[1751623920224,36.19569,2554.4,2554.3,3.9905]
[1751623921428,36.19569,2554.4,2554.3,0.7827]
[1751623922622,36.19572,2554.4,2554.3,0.7827]
[1751623923130,0.78272,2554.3,2554.2,5.38323]
[1751623925130,0.78272,2554.3,2554.2,3.9009]
[1751623925325,2.14632,2554.3,2554.2,0.6931]
[1751623925830,3.33695511,2554.3,2554.2,0.6931]